fUSD/lending_fUSD_20241122
["ID","MTS","AMOUNT","RATE_DAILY","PERIOD"]
[343004879,1732271454582,-500.0,0.00095998,120]
[343004880,1732271454592,-500.0,0.00095998,120]
[343004881,1732271454602,-500.0,0.00095998,120]
[343004882,1732271454611,-500.0,0.00095998,120]
[343004883,1732271454621,-500.0,0.00095998,120]
[343004884,1732271454631,-500.0,0.00095998,120]
[343004885,1732271454640,-364.8,0.00095998,120]
[343004886,1732271454649,-500.0,0.00095998,120]
[343004887,1732271454658,-500.0,0.00095998,120]
[343004888,1732271454668,-500.0,0.00095998,120]
[343004889,1732271454678,-500.0,0.00095998,120]
[343004890,1732271454687,-500.0,0.00095998,120]
[343004891,1732271454697,-500.0,0.00095998,120]
[343004892,1732271454706,-500.0,0.00095998,120]
[343004893,1732271454715,-500.0,0.00095998,120]
[343004894,1732271454724,-500.0,0.00095998,120]
[343004895,1732271454734,-500.0,0.00095998,120]
[343004896,1732271454743,-508.76,0.00095998,120]
[343004897,1732271454752,-432.54,0.00095998,120]
[343004898,1732271454762,-731.68,0.00095998,120]
[343004899,1732271454771,-500.0,0.00095998,120]
[343004900,1732271454781,-500.0,0.00095998,120]
[343004901,1732271454800,-500.0,0.00095998,120]
[343004902,1732271454819,-500.0,0.00095998,120]
[343004903,1732271454828,-500.0,0.00095998,120]
[343004904,1732271454837,-500.0,0.00095998,120]
[343004905,1732271454847,-1226.21,0.00095998,120]
[343004906,1732271454857,-500.0,0.00095998,120]
[343004907,1732271454867,-2685.13,0.00095998,120]
[343004908,1732271454877,-500.0,0.00095998,120]
[343004909,1732271454886,-500.0,0.00095998,120]
[343004910,1732271454896,-50000.0,0.00095999,120]
[343004911,1732271454905,-500.0,0.00095999,120]
[343004912,1732271454914,-500.0,0.00095999,120]
[343004913,1732271454923,-500.0,0.00095999,120]
[343004914,1732271454933,-500.0,0.00095999,120]
[343004915,1732271454942,-500.0,0.00095999,20]
[343004916,1732271454951,-500.0,0.00095999,120]
[343004917,1732271454960,-636.27,0.00095999,120]
[343004918,1732271454969,-500.0,0.00095999,120]
[343004919,1732271454978,-1128.49,0.00095999,120]
[343004920,1732271454987,-500.0,0.00095999,120]
[343004921,1732271455001,-394.78269965,0.00095999,7]
[343004922,1732271455011,-500.0,0.00095999,120]
[343004923,1732271455020,-500.0,0.00095999,120]
[343004924,1732271455030,-715.43,0.00095999,120]
[343004925,1732271455040,-500.0,0.00095999,120]
[343004926,1732271455049,-1098.78,0.00095999,120]
[343004927,1732271455059,-500.0,0.00095999,120]
[343004928,1732271455068,-242.68,0.00095999,120]
[343004929,1732271455078,-538.7,0.00095999,120]
[343004930,1732271455088,-500.0,0.00095999,120]
[343004931,1732271455097,-500.0,0.00095999,120]
[343004932,1732271455107,-500.0,0.00095999,120]
[343004933,1732271455118,-617.22,0.00095999,120]
[343004934,1732271455127,-551.16,0.00095999,120]
[343004935,1732271455136,-529.73,0.00095999,120]
[343004936,1732271455145,-500.0,0.00095999,2]
[343004937,1732271455154,-500.0,0.00095999,120]
[343004938,1732271455165,-500.0,0.00095999,21]
[343004939,1732271455174,-500.0,0.00095999,120]
[343004940,1732271455186,-593.64,0.00095999,120]
[343004941,1732271455196,-612.22,0.00095999,120]
[343004942,1732271455205,-500.0,0.00095999,120]
[343004943,1732271455215,-508.76,0.00095999,120]
[343004944,1732271455228,-500.0,0.00095999,120]
[343004945,1732271455246,-500.0,0.00095999,120]
[343004946,1732271455257,-500.0,0.00095999,120]
[343004947,1732271455267,-500.0,0.00095999,120]
[343004948,1732271455277,-633.02,0.00095999,120]
[343004949,1732271455286,-500.0,0.00095999,120]
[343004950,1732271455297,-500.0,0.00095999,120]
[343004951,1732271455307,-500.0,0.00095999,120]
[343004952,1732271455318,-500.0,0.00095999,120]
[343004953,1732271455328,-775.89,0.00095999,120]
[343004954,1732271455338,-1226.21,0.00095999,120]
[343004955,1732271455348,-561.88,0.00095999,120]
[343004956,1732271455357,-614.31,0.00095999,120]
[343004957,1732271455368,-2610.13217246,0.00095999,120]
[343004958,1732271455488,-74.99782754,0.00095999,120]
[343004959,1732271455498,-2130.58,0.00095999,120]
[343004960,1732271455507,-1486.67787246,0.00095999,120]
[343004961,1732271455518,-2100.75212754,0.00095999,120]
[343004962,1732271455528,-500.0,0.00095999,120]
[343004963,1732271455537,-500.0,0.00095999,120]
[343004964,1732271455547,-713.48,0.00095999,120]
[343004965,1732271455556,-2520.61,0.00095999,120]
[343004966,1732271455565,-38031.4364935,0.00096,65]
[343004967,1732271455620,-500.0,0.0009041,120]
[343004968,1732271455630,-463.48,0.0009041,120]
[343004969,1732271455639,-842.83064676,0.00096,65]
[343004970,1732271455651,-253.7732008,0.00096,65]
[343004971,1732271455663,-23298.85569689,0.00096,65]
[343004972,1732271455674,-15613.1064871,0.00096,65]
[343004973,1732271455685,-487.3,0.00096,65]
[343004974,1732271455696,-2278.85897762,0.00096,65]
[343004975,1732271455740,-500.0,0.00090684,120]
[343004976,1732271455750,-433.00433895,0.00090958,120]
[343004977,1732271455761,-66.99566105,0.00090958,120]
[343004978,1732271455770,-500.0,0.00091232,120]
[343004979,1732271455779,-500.0,0.00091506,120]
[343004980,1732271455789,-500.0,0.0009178,120]
[343004981,1732271455803,-7802.98669425,0.00096,65]
[343004982,1732271455815,-6502.29444604,0.00096,65]
[343004983,1732271455830,-400.07483383,0.00092054,120]
[343004984,1732271455843,-99.92516617,0.00092054,120]
[343004985,1732271455853,-328.86805204,0.00096,65]
[343004986,1732271455867,-4559.689305,0.00096,65]
[343004987,1732271455877,-155.99986119,0.00096,120]
[343004988,1732271455888,-4371.39594954,0.00096,120]
[343004989,1732271455900,-1499.7054102,0.00096,120]
[343004990,1732271455910,-888.43578756,0.00096,120]
[343004991,1732271455921,-392.396004,0.00096,120]
[343004992,1732271455932,-801.0,0.00096,120]
[343004993,1732271455943,-275.7755006,0.00096,120]
[343004994,1732271455972,-62.64370235,0.00096,120]
[343004995,1732271455983,-953.09058162,0.00096,120]
[343004996,1732271455996,-9007.86415865,0.00096,120]
[343004997,1732271456008,-690.82000001,0.00096,120]
[343004998,1732271456019,-1346.25405881,0.00096,120]
[343004999,1732271456030,-383.78651,0.00096,120]
[343005000,1732271456042,-8328.50201064,0.00096,120]
[343005001,1732271456055,-642.64999998,0.00096,120]
[343005002,1732271456067,-3857.20335,0.00096,120]
[343005003,1732271456077,-401.025,0.00096,120]
[343005004,1732271456088,-15941.45211485,0.00096,120]
[343005005,1732271456098,-20000.0,0.00096,120]
[343005006,1732271456108,-41972.25266519,0.00096,120]
[343005007,1732271456118,-151.0,0.00096,120]
[343005008,1732271456128,-4194.19548836,0.00096,120]
[343005009,1732271456318,-40.62675468,0.00092328,120]
[343005010,1732271456329,-459.37324532,0.00092328,120]
[343005011,1732271456338,-500.0,0.00092602,120]
[343005012,1732271456348,-500.0,0.00092876,120]
[343005013,1732271456357,-500.0,0.0009315,120]
[343005014,1732271456369,-40.62675468,0.00093424,120]
[343005015,1732271456380,-459.37324532,0.00093424,120]
[343005016,1732271456389,-500.0,0.00093698,120]
[343005017,1732271456398,-500.0,0.00093972,120]
[343005018,1732271456408,-316.21,0.00094246,120]
[343005019,1732271456417,-1598.28051831,0.00096,120]
[343005020,1732271456428,-9631.4658,0.00096,120]
[343005021,1732271456439,-382.178985,0.00096,120]
[343005022,1732271456450,-742.0532403,0.00096,120]
[343005023,1732271456462,-2997.21535432,0.00096,120]
[343005024,1732271456474,-2160.96878254,0.00096,120]
[343005025,1732271456488,-4243.12704224,0.00096,120]
[343005026,1732271457730,-24050.51478893,0.00096,120]
[343005027,1732271457739,-1481.482654,0.00096,120]
[343005028,1732271457748,-1481.482654,0.00096,120]
[343005029,1732271457758,-385.58262,0.0009603,120]
[343005030,1732271457768,-299.9527354,0.00096136,120]
[343005031,1732271457777,-636.08,0.00096164,120]
[343005032,1732271457787,-998.89,0.00096164,120]
[343005033,1732271457798,-174.02457337,0.00096164,120]
[343005034,1732271457811,-699.37,0.00096164,120]
[343005035,1732271457821,-773.26,0.00096164,120]
[343005036,1732271457831,-510.92,0.00096164,120]
[343005037,1732271457842,-450.93,0.00096164,120]
[343005038,1732271457851,-378.80252634,0.00096164,120]
[343005039,1732271457861,-1027.50423675,0.000964,63]
[343005040,1732271457874,-636.12964229,0.00096438,120]
[343005041,1732271457887,-999.02,0.00096438,120]
[343005042,1732271457897,-699.49,0.00096438,120]
[343005043,1732271457909,-773.36,0.00096438,120]
[343005044,1732271457919,-510.94,0.00096438,120]
[343005045,1732271457930,-152.23,0.000965,81]
[343005046,1732271457940,-152.23,0.000965,81]
[343005047,1732271457950,-50000.0,0.000965,120]
[343005048,1732271457960,-385.58262,0.0009655,120]
[343005049,1732271457970,-659.95415696,0.0009657,15]
[343005050,1732271457982,-3118.4597108,0.00096618,15]
[343005051,1732271457992,-644.12271692,0.00096688,85]
[343005052,1732271458001,-167.0657379,0.00096899,120]
[343005053,1732271458012,-194.2420831,0.000969,2]
[343005054,1732271458022,-731.66761746,0.000969,2]
[343005055,1732271458031,-162.36845205,0.000969,2]
[343005056,1732271458042,-301.22715018,0.000969,2]
[343005057,1732271458052,-6240.7532773,0.000969,2]
[343005058,1732271458062,-200.82304526,0.000969,2]
[343005059,1732271458071,-150.0,0.00096986,120]
[343005060,1732271458082,-150.0,0.00096986,120]
[343005061,1732271458092,-150.0,0.00096986,120]
[343005062,1732271458101,-150.55868437,0.00096986,120]
[343005063,1732271458111,-150.0,0.00096986,120]
[343005064,1732271458124,-150.0,0.00096986,120]
[343005065,1732271458139,-13129.3975871,0.00096989,15]
[343005066,1732271458149,-2714.4686017,0.00096989,15]
[343005067,1732271458159,-2209.5588284,0.00096989,15]
[343005068,1732271458169,-510.55280808,0.00096995,120]
[343005069,1732271458179,-715.43,0.00096995,120]
[343005070,1732271458189,-500.0,0.00096995,120]
[343005071,1732271458199,-500.0,0.00096995,120]
[343005072,1732271458210,-500.0,0.00096995,120]
[343005073,1732271458220,-617.22,0.00096995,120]
[343005074,1732271458229,-529.73,0.00096995,120]
[343005075,1732271458239,-500.0,0.00096995,2]
[343005076,1732271458249,-500.0,0.00096995,120]
[343005077,1732271458259,-500.0,0.00096995,21]
[343005078,1732271458269,-612.22,0.00096995,120]
[343005079,1732271458279,-500.0,0.00096995,120]
[343005080,1732271458289,-500.0,0.00096995,120]
[343005081,1732271458299,-494.69300499,0.00096995,120]
[343005082,1732271458309,-500.0,0.00096995,120]
[343005083,1732271458319,-500.0,0.00096995,120]
[343005084,1732271458328,-775.89,0.00096995,120]
[343005085,1732271458338,-561.88,0.00096995,120]
[343005086,1732271458348,-2130.58,0.00096995,120]
[343005087,1732271458357,-3587.43,0.00096995,120]
[343005088,1732271458369,-713.48,0.00096995,120]
[343005089,1732271458382,-500.0,0.00096996,120]
[343005090,1732271458392,-500.0,0.00096996,120]
[343005091,1732271458401,-500.0,0.00096996,120]
[343005092,1732271458411,-500.0,0.00096996,120]
[343005093,1732271458421,-500.0,0.00096996,120]
[343005094,1732271458431,-500.0,0.00096996,120]
[343005095,1732271458441,-500.0,0.00096996,120]
[343005096,1732271458450,-1809.41,0.00096996,120]
[343005097,1732271458460,-500.0,0.00096996,120]
[343005098,1732271458470,-498.62695053,0.00096996,120]
[343005099,1732271458480,-500.0,0.00096996,120]
[343005100,1732271458491,-500.0,0.00096996,120]
[343005101,1732271458500,-230.89,0.00096996,120]
[343005102,1732271458510,-500.0,0.00096996,120]
[343005103,1732271458520,-500.0,0.00096996,120]
[343005104,1732271458529,-500.0,0.00096996,120]
[343005105,1732271458539,-500.0,0.00096996,120]
[343005106,1732271458548,-500.0,0.00096996,120]
[343005107,1732271458558,-500.0,0.00096996,120]
[343005108,1732271458568,-685.2,0.00096996,120]
[343005109,1732271458577,-500.0,0.00096996,120]
[343005110,1732271458587,-500.0,0.00096996,120]
[343005111,1732271458597,-500.0,0.00096996,120]
[343005112,1732271458607,-500.0,0.00096996,120]
[343005113,1732271458616,-500.0,0.00096996,120]
[343005114,1732271458628,-500.0,0.00096996,120]
[343005115,1732271458638,-500.0,0.00096996,120]
[343005116,1732271458647,-500.0,0.00096996,120]
[343005117,1732271458656,-500.0,0.00096996,120]
[343005118,1732271458666,-314.21750347,0.00096996,120]
[343005119,1732271458675,-500.0,0.00096996,120]
[343005120,1732271458684,-500.0,0.00096996,120]
[343005121,1732271458694,-500.0,0.00096996,120]
[343005122,1732271458703,-500.0,0.00096996,120]
[343005123,1732271458713,-500.0,0.00096996,120]
[343005124,1732271458723,-500.0,0.00096996,120]
[343005125,1732271458732,-500.0,0.00096996,20]
[343005126,1732271458742,-500.0,0.00096996,120]
[343005127,1732271458751,-500.0,0.00096996,120]
[343005128,1732271458761,-636.27,0.00096996,120]
[343005129,1732271458770,-500.0,0.00096996,120]
[343005130,1732271458780,-338.66550885,0.00096996,120]
[343005131,1732271458789,-256.46793501,0.00096996,120]
[343005132,1732271458802,-500.0,0.00096996,120]
[343005133,1732271458812,-500.0,0.00096996,120]
[343005134,1732271458822,-500.0,0.00096996,120]
[343005135,1732271458831,-500.0,0.00096996,120]
[343005136,1732271458843,-1128.49,0.00096996,120]
[343005137,1732271458852,-500.0,0.00096996,120]
[343005138,1732271458861,-500.0,0.00096996,120]
[343005139,1732271458875,-500.0,0.00096996,120]
[343005140,1732271458885,-500.0,0.00096996,120]
[343005141,1732271458894,-500.0,0.00096996,120]
[343005142,1732271458904,-500.0,0.00096996,120]
[343005143,1732271458913,-500.0,0.00096996,120]
[343005144,1732271458923,-500.0,0.00096996,120]
[343005145,1732271458933,-500.0,0.00096996,120]
[343005146,1732271458943,-500.0,0.00096996,120]
[343005147,1732271458952,-1098.78,0.00096996,120]
[343005148,1732271458963,-500.0,0.00096996,120]
[343005149,1732271458972,-151.0,0.00096996,120]
[343005150,1732271458985,-500.0,0.00096996,120]
[343005151,1732271458995,-500.0,0.00096996,120]
[343005152,1732271459005,-500.0,0.00096996,120]
[343005153,1732271459015,-207.114519,0.00096996,120]
[343005154,1732271459025,-207.114519,0.00096996,120]
[343005155,1732271459035,-551.16,0.00096996,120]
[343005156,1732271459044,-500.0,0.00096996,120]
[343005157,1732271459054,-385.58263,0.00096996,120]
[343005158,1732271459064,-183.91,0.00096996,120]
[343005159,1732271459073,-489.82,0.00096996,120]
[343005160,1732271459083,-500.0,0.00096996,120]
[343005161,1732271459092,-500.0,0.00096996,120]
[343005162,1732271459102,-500.0,0.00096996,120]
[343005163,1732271459112,-500.0,0.00096996,120]
[343005164,1732271459126,-508.76,0.00096996,120]
[343005165,1732271459136,-731.68,0.00096996,120]
[343005166,1732271459146,-500.0,0.00096996,120]
[343005167,1732271459156,-500.0,0.00096996,120]
[343005168,1732271459166,-633.02,0.00096996,120]
[343005169,1732271459176,-500.0,0.00096996,120]
[343005170,1732271459186,-500.0,0.00096996,120]
[343005171,1732271459195,-500.0,0.00096996,120]
[343005172,1732271459205,-500.0,0.00096996,120]
[343005173,1732271459215,-1063.234,0.00096996,120]
[343005174,1732271459226,-1063.234,0.00096996,120]
[343005175,1732271459236,-500.0,0.00096996,120]
[343005176,1732271459246,-1226.21,0.00096996,120]
[343005177,1732271459256,-500.0,0.00096996,120]
[343005178,1732271459265,-614.31,0.00096996,120]
[343005179,1732271459275,-2685.13,0.00096996,120]
[343005180,1732271459286,-500.0,0.00096996,120]
[343005181,1732271459296,-500.0,0.00096996,120]
[343005182,1732271459307,-500.0,0.00096996,120]
[343005183,1732271459318,-2520.61,0.00096996,120]
[343005184,1732271459328,-437.24,0.00096997,120]
[343005185,1732271459338,-500.0,0.00096997,120]
[343005186,1732271459348,-529.48087893,0.00096997,120]
[343005187,1732271459357,-352.69,0.00096997,120]
[343005188,1732271459370,-500.0,0.00096997,120]
[343005189,1732271459380,-1809.41,0.00096997,120]
[343005190,1732271459389,-500.0,0.00096997,120]
[343005191,1732271459399,-500.0,0.00096997,120]
[343005192,1732271459408,-500.0,0.00096997,120]
[343005193,1732271459418,-500.0,0.00096997,120]
[343005194,1732271459427,-288.82,0.00096997,120]
[343005195,1732271459437,-500.0,0.00096997,120]
[343005196,1732271459447,-508.07044436,0.00096997,120]
[343005197,1732271459456,-500.0,0.00096997,120]
[343005198,1732271459466,-500.0,0.00096997,120]
[343005199,1732271459475,-685.2,0.00096997,120]
[343005200,1732271459485,-500.0,0.00096997,120]
[343005201,1732271459494,-500.0,0.00096997,120]
[343005202,1732271459503,-500.0,0.00096997,120]
[343005203,1732271459513,-500.0,0.00096997,120]
[343005204,1732271459522,-500.0,0.00096997,120]
[343005205,1732271459532,-500.0,0.00096997,120]
[343005206,1732271459542,-500.0,0.00096997,120]
[343005207,1732271459551,-500.0,0.00096997,120]
[343005208,1732271459560,-500.0,0.00096997,120]
[343005209,1732271459570,-500.0,0.00096997,120]
[343005210,1732271459579,-465.41,0.00096997,120]
[343005211,1732271459589,-500.0,0.00096997,120]
[343005212,1732271459598,-500.0,0.00096997,120]
[343005213,1732271459608,-500.0,0.00096997,120]
[343005214,1732271459620,-500.0,0.00096997,120]
[343005215,1732271459629,-500.0,0.00096997,120]
[343005216,1732271459639,-204.33,0.00096997,120]
[343005217,1732271459648,-500.0,0.00096997,120]
[343005218,1732271459658,-500.0,0.00096997,120]
[343005219,1732271459668,-500.0,0.00096997,120]
[343005220,1732271459678,-500.0,0.00096997,120]
[343005221,1732271459688,-500.0,0.00096997,20]
[343005222,1732271459698,-500.0,0.00096997,20]
[343005223,1732271459707,-500.0,0.00096997,20]
[343005224,1732271459716,-500.0,0.00096997,20]
[343005225,1732271459726,-500.0,0.00096997,20]
[343005226,1732271459735,-500.0,0.00096997,20]
[343005227,1732271459745,-500.0,0.00096997,20]
[343005228,1732271459755,-500.0,0.00096997,120]
[343005229,1732271459764,-500.0,0.00096997,20]
[343005230,1732271459774,-322.28356604,0.00096997,20]
[343005231,1732271459783,-500.0,0.00096997,120]
[343005232,1732271459794,-636.27,0.00096997,120]
[343005233,1732271459804,-636.27,0.00096997,120]
[343005234,1732271459815,-636.27,0.00096997,120]
[343005235,1732271459824,-636.27,0.00096997,120]
[343005236,1732271459834,-636.27,0.00096997,120]
[343005237,1732271459843,-636.27,0.00096997,120]
[343005238,1732271459854,-636.27,0.00096997,120]
[343005239,1732271459863,-636.27,0.00096997,120]
[343005240,1732271459874,-636.27,0.00096997,120]
[343005241,1732271459885,-636.27,0.00096997,120]
[343005242,1732271459894,-636.28,0.00096997,120]
[343005243,1732271459903,-500.0,0.00096997,120]
[343005244,1732271459914,-500.0,0.00096997,120]
[343005245,1732271459924,-500.0,0.00096997,120]
[343005246,1732271459933,-500.0,0.00096997,120]
[343005247,1732271459943,-500.0,0.00096997,120]
[343005248,1732271459952,-1128.49,0.00096997,120]
[343005249,1732271459962,-1128.49,0.00096997,120]
[343005250,1732271459972,-1128.49,0.00096997,120]
[343005251,1732271459982,-1128.49,0.00096997,120]
[343005252,1732271459992,-1128.49,0.00096997,120]
[343005253,1732271460002,-1128.49,0.00096997,120]
[343005254,1732271460012,-1128.49,0.00096997,120]
[343005255,1732271460023,-1128.49,0.00096997,120]
[343005256,1732271460033,-1128.49,0.00096997,120]
[343005257,1732271460044,-1128.49,0.00096997,120]
[343005258,1732271460054,-1128.66086163,0.00096997,120]
[343005259,1732271460064,-246.97,0.00096997,120]
[343005260,1732271460074,-504.44,0.00096997,120]
[343005261,1732271460084,-500.0,0.00096997,120]
[343005262,1732271460216,-500.0,0.00096997,120]
[343005263,1732271460226,-298.03169611,0.00096997,120]
[343005264,1732271460236,-500.0,0.00096997,120]
[343005265,1732271460246,-500.0,0.00096997,120]
[343005266,1732271460255,-500.0,0.00096997,120]
[343005267,1732271460265,-500.0,0.00096997,120]
[343005268,1732271460275,-644.80787997,0.00096997,120]
[343005269,1732271460284,-500.0,0.00096997,120]
[343005270,1732271460294,-500.0,0.00096997,120]
[343005271,1732271460303,-500.0,0.00096997,120]
[343005272,1732271460312,-434.76,0.00096997,120]
[343005273,1732271460322,-715.43,0.00096997,120]
[343005274,1732271460331,-500.0,0.00096997,120]
[343005275,1732271460340,-1098.78,0.00096997,120]
[343005276,1732271460350,-500.0,0.00096997,120]
[343005277,1732271460360,-500.0,0.00096997,120]
[343005278,1732271460371,-500.0,0.00096997,120]
[343005279,1732271460380,-500.0,0.00096997,120]
[343005280,1732271460390,-287.479458,0.00096997,120]
[343005281,1732271460399,-500.0,0.00096997,120]
[343005282,1732271460409,-500.0,0.00096997,120]
[343005283,1732271460418,-287.479458,0.00096997,120]
[343005284,1732271460427,-617.22,0.00096997,120]
[343005285,1732271460437,-551.16,0.00096997,120]
[343005286,1732271460447,-529.73,0.00096997,120]
[343005287,1732271460457,-500.0,0.00096997,120]
[343005288,1732271460467,-500.0,0.00096997,2]
[343005289,1732271460477,-500.0,0.00096997,120]
[343005290,1732271460487,-500.0,0.00096997,21]
[343005291,1732271460497,-500.0,0.00096997,120]
[343005292,1732271460507,-500.0,0.00096997,120]
[343005293,1732271460516,-612.22,0.00096997,120]
[343005294,1732271460526,-500.0,0.00096997,120]
[343005295,1732271460536,-500.0,0.00096997,120]
[343005296,1732271460546,-731.68,0.00096997,120]
[343005297,1732271460557,-500.0,0.00096997,120]
[343005298,1732271460567,-500.0,0.00096997,120]
[343005299,1732271460578,-500.0,0.00096997,120]
[343005300,1732271460587,-633.02,0.00096997,120]
[343005301,1732271460597,-275.05851826,0.00096997,120]
[343005302,1732271460606,-500.0,0.00096997,120]
[343005303,1732271460615,-500.0,0.00096997,120]
[343005304,1732271460627,-500.0,0.00096997,120]
[343005305,1732271460638,-500.0,0.00096997,120]
[343005306,1732271460647,-775.89,0.00096997,120]
[343005307,1732271460656,-517.07,0.00096997,120]
[343005308,1732271460666,-561.88,0.00096997,120]
[343005309,1732271460675,-500.0,0.00096997,120]
[343005310,1732271460685,-614.31,0.00096997,120]
[343005311,1732271460695,-2130.58,0.00096997,120]
[343005312,1732271460704,-500.0,0.00096997,120]
[343005313,1732271460715,-3587.43,0.00096997,120]
[343005314,1732271460724,-500.0,0.00096997,120]
[343005315,1732271460734,-713.48,0.00096997,120]
[343005316,1732271460743,-2520.61,0.00096997,120]
[343005317,1732271460753,-500.0,0.00096998,120]
[343005318,1732271460762,-500.0,0.00096998,120]
[343005319,1732271460771,-645.40158054,0.00096998,120]
[343005320,1732271460781,-500.0,0.00096998,120]
[343005321,1732271460790,-500.0,0.00096998,120]
[343005322,1732271460799,-500.0,0.00096998,120]
[343005323,1732271460814,-500.0,0.00096998,120]
[343005324,1732271460823,-500.0,0.00096998,120]
[343005325,1732271460833,-1809.41,0.00096998,120]
[343005326,1732271460843,-1809.41,0.00096998,120]
[343005327,1732271460852,-1809.41,0.00096998,120]
[343005328,1732271460862,-500.0,0.00096998,120]
[343005329,1732271460873,-1809.41,0.00096998,120]
[343005330,1732271460883,-500.0,0.00096998,120]
[343005331,1732271460893,-1809.41,0.00096998,120]
[343005332,1732271460902,-282.7,0.00096998,120]
[343005333,1732271460912,-457.89596842,0.00096998,120]
[343005334,1732271460921,-500.0,0.00096998,120]
[343005335,1732271460932,-500.0,0.00096998,120]
[343005336,1732271460942,-618.54,0.00096998,120]
[343005337,1732271460951,-151.0,0.00096998,120]
[343005338,1732271460960,-500.0,0.00096998,120]
[343005339,1732271460969,-500.0,0.00096998,120]
[343005340,1732271460979,-500.0,0.00096998,120]
[343005341,1732271460989,-500.0,0.00096998,120]
[343005342,1732271460999,-500.0,0.00096998,120]
[343005343,1732271461008,-500.0,0.00096998,120]
[343005344,1732271461019,-634.48,0.00096998,120]
[343005345,1732271461029,-500.0,0.00096998,120]
[343005346,1732271461039,-500.0,0.00096998,120]
[343005347,1732271461049,-500.0,0.00096998,120]
[343005348,1732271461058,-500.0,0.00096998,120]
[343005349,1732271461068,-500.0,0.00096998,120]
[343005350,1732271461078,-685.2,0.00096998,120]
[343005351,1732271461087,-685.2,0.00096998,120]
[343005352,1732271461097,-685.2,0.00096998,120]
[343005353,1732271461107,-685.2,0.00096998,120]
[343005354,1732271461117,-685.2,0.00096998,120]
[343005355,1732271461129,-500.0,0.00096998,120]
[343005356,1732271461139,-500.0,0.00096998,120]
[343005357,1732271461149,-500.0,0.00096998,120]
[343005358,1732271461159,-500.0,0.00096998,120]
[343005359,1732271461168,-500.0,0.00096998,120]
[343005360,1732271461177,-500.0,0.00096998,120]
[343005361,1732271461187,-439.06,0.00096998,120]
[343005362,1732271461196,-234.6,0.00096998,120]
[343005363,1732271461206,-500.0,0.00096998,120]
[343005364,1732271461215,-500.0,0.00096998,120]
[343005365,1732271461225,-500.0,0.00096998,120]
[343005366,1732271461236,-500.0,0.00096998,120]
[343005367,1732271461246,-500.0,0.00096998,120]
[343005368,1732271461256,-500.0,0.00096998,120]
[343005369,1732271461265,-500.0,0.00096998,120]
[343005370,1732271461274,-500.0,0.00096998,120]
[343005371,1732271461284,-500.0,0.00096998,120]
[343005372,1732271461294,-500.0,0.00096998,120]
[343005373,1732271461304,-500.0,0.00096998,120]
[343005374,1732271461314,-507.88,0.00096998,120]
[343005375,1732271461324,-500.0,0.00096998,120]
[343005376,1732271461333,-500.0,0.00096998,120]
[343005377,1732271461343,-500.0,0.00096998,120]
[343005378,1732271461353,-151.0,0.00096998,120]